bitfinex/quotes_ETHUSD_20240604
["timestamp","ask_amount","ask_price","bid_price","bid_amount"]
[1717499173308,2.3259,3767.5,3766.8,3.0]
[1717499173507,2.3259,3767.5,3767.1,0.804]
[1717499173967,2.3259,3767.5,3766.8,3.0]
[1717499174114,2.65435,3767.4,3767.0,0.804]
[1717499176253,2.65435,3767.4,3767.2,0.804]
[1717499186686,2.3259,3767.5,3767.2,0.804]
[1717499186901,2.65414,3767.7,3767.4,0.804]
[1717499191903,2.65414,3767.7,3767.1,1.38364782]
[1717499192067,2.65414,3767.7,3767.3,0.804]
[1717499194082,2.65414,3767.7,3767.3,2.18764853]
[1717499194264,2.65414,3767.7,3767.4,0.92242767]
[1717499194466,2.65414,3767.7,3767.3,0.804]
[1717499194682,2.65414,3767.7,3767.4,0.92241552]
[1717499194880,2.65414,3767.7,3767.3,0.804]
[1717499195122,2.65414,3767.7,3767.4,0.92241079]
[1717499195416,2.65414,3767.7,3767.3,0.804]
[1717499195577,2.65414,3767.7,3767.4,0.92241749]
[1717499195921,2.65414,3767.7,3767.3,1.38362606]
[1717499196085,2.65414,3767.7,3767.4,0.92241863]
[1717499196425,2.65414,3767.7,3767.3,1.38362808]
[1717499197221,2.65414,3767.7,3767.4,0.92241692]
[1717499197368,2.65414,3767.7,3767.3,1.38362525]
[1717499197566,2.65414,3767.7,3767.4,0.92242087]
[1717499197768,2.65414,3767.7,3767.3,1.38363155]
[1717499198006,2.65414,3767.7,3767.4,0.92242096]
[1717499198209,2.65414,3767.7,3767.3,1.38363143]
[1717499198515,2.65414,3767.7,3767.4,0.92242105]
[1717499198719,2.65436,3767.4,3767.3,1.38363159]
[1717499199011,2.65436,3767.4,3767.3,2.30605381]
[1717499200007,2.65436,3767.4,3767.3,0.92244935]
[1717499203307,2.65436,3767.4,3767.3,0.92245057]
[1717499206516,2.65436,3767.4,3767.2,0.804]
[1717499206819,2.65436,3767.4,3767.3,2.30609301]
[1717499207019,2.65436,3767.4,3767.3,2.39863767]
[1717499210437,2.65436,3767.4,3767.3,2.39863767]
[1717499214714,2.65436,3767.4,3767.3,2.39861883]
[1717499216127,2.65436,3767.4,3767.3,2.39860596]
[1717499216923,2.65436,3767.4,3767.3,1.01496918]
[1717499217288,2.65436,3767.4,3767.3,2.3986508]
[1717499218799,2.65436,3767.4,3767.3,2.39867903]
[1717499221210,2.65436,3767.4,3767.3,2.39865109]
[1717499223225,2.65436,3767.4,3767.3,2.85640678]
[1717499227248,2.65436,3767.4,3767.3,2.39865109]
[1717499229004,2.65436,3767.4,3767.3,2.39866114]
[1717499230537,2.65436,3767.4,3767.3,2.94882381]
[1717499233084,2.65415,3767.7,3767.3,2.94882381]
[1717499233286,2.65415,3767.7,3767.4,2.30611648]
[1717499233581,2.65415,3767.7,3767.5,2.30603342]
[1717499233781,2.65415,3767.7,3767.3,0.64270733]
[1717499233942,2.65415,3767.7,3767.4,2.30597802]
[1717499234140,2.65415,3767.7,3767.5,0.92239121]
[1717499234460,2.65415,3767.7,3767.3,0.64270733]
[1717499234786,2.65415,3767.7,3767.4,2.3059952]
[1717499234983,2.65415,3767.7,3767.5,0.92239808]
[1717499235283,2.65415,3767.7,3767.3,0.64270733]
[1717499235533,2.65415,3767.7,3767.4,2.3059961]
[1717499235729,2.65415,3767.7,3767.5,0.92239844]
[1717499236095,2.65415,3767.7,3767.3,0.64270733]
[1717499236283,2.65415,3767.7,3767.4,2.30600318]
[1717499236491,2.65415,3767.7,3767.5,0.92240127]
[1717499236731,2.65415,3767.7,3767.3,0.64270733]
[1717499237038,2.65415,3767.7,3767.4,2.30598307]
[1717499237185,2.65415,3767.7,3767.5,2.30598307]
[1717499237385,2.65415,3767.7,3767.6,0.92238715]
[1717499238429,2.65415,3767.7,3767.6,2.30592432]
[1717499238795,2.65415,3767.7,3767.6,2.30589646]
[1717499240418,2.65415,3767.7,3767.6,0.92235858]
[1717499243656,2.6539,3768.1,3767.6,1.96326517]
[1717499243985,2.65365,3768.4,3768.1,0.804]
[1717499244189,2.65365,3768.4,3768.2,2.30564617]
[1717499244478,2.65365,3768.4,3768.1,2.18728759]
[1717499244685,2.65365,3768.4,3768.1,0.804]
[1717499244852,2.65365,3768.4,3768.1,2.18728759]
[1717499245178,2.65365,3768.4,3768.2,0.92218465]
[1717499245484,2.65365,3768.4,3768.1,0.804]
[1717499247585,2.65365,3768.4,3768.3,0.804]
[1717499247764,2.65365,3768.4,3768.1,0.804]
[1717499250900,2.65365,3768.4,3768.3,0.804]
[1717499252299,2.65333,3768.9,3768.3,0.804]
[1717499254483,2.6535,3768.7,3768.3,0.804]
[1717499257298,2.6535,3768.7,3768.1,2.3257]
[1717499257483,2.6535,3768.7,3768.3,0.804]
[1717499260501,2.65364,3768.5,3768.3,0.804]
[1717499267408,2.65364,3768.5,3768.2,0.96457]
[1717499267709,2.65364,3768.5,3768.4,0.804]
[1717499270697,2.65364,3768.5,3768.2,0.96457]
[1717499271014,2.65364,3768.5,3768.4,0.804]
[1717499272215,2.65364,3768.5,3768.2,0.96457]
[1717499272391,2.65364,3768.5,3768.4,0.804]
[1717499279433,8.46988863,3769.3,3768.4,3.556727]
[1717499279617,0.0897079,3769.9,3769.2,2.3604]
[1717499279817,0.0897079,3769.9,3769.7,0.804]
[1717499280207,0.0897079,3769.9,3769.2,2.3604]
[1717499280411,0.0897079,3769.9,3769.7,0.804]
[1717499280711,5.15272,3769.8,3769.7,0.804]
[1717499281448,2.5,3769.8,3769.7,0.804]
[1717499284437,2.5,3769.8,3769.2,5.01347]
[1717499284638,2.5,3769.8,3769.7,0.804]
[1717499285057,2.5,3769.8,3769.3,0.501347]
[1717499285228,2.5,3769.8,3769.7,0.804]
[1717499287663,2.5,3769.8,3769.2,2.3604]
[1717499288168,2.5,3769.8,3769.7,0.804]
[1717499289428,2.5,3769.8,3769.2,2.3604]
[1717499289654,2.5,3769.8,3769.7,0.804]
[1717499292240,2.5,3769.8,3769.3,0.37431474]
[1717499292772,2.5,3769.8,3769.6,0.804]
[1717499293687,2.5,3769.8,3769.2,2.3604]
[1717499293898,2.5,3769.8,3769.6,0.804]
[1717499294561,2.65273,3769.7,3769.6,0.804]
[1717499295351,2.65273,3769.7,3769.4,0.804]
[1717499297067,2.65273,3769.7,3769.5,0.0908002]
[1717499298453,2.65273,3769.7,3769.5,0.0908002]
[1717499300956,2.65273,3769.7,3769.5,0.8948002]
[1717499301188,2.65273,3769.7,3769.6,0.804]
[1717499304000,2.65273,3769.7,3769.5,0.41632022]
[1717499304205,2.65273,3769.7,3769.6,0.804]
[1717499305464,2.65273,3769.7,3769.5,0.41632022]
[1717499305700,2.65273,3769.7,3769.5,1.22032022]
[1717499306306,2.65273,3769.7,3769.5,0.41632022]
[1717499306489,2.65273,3769.7,3769.5,0.0908002]
[1717499306691,2.65273,3769.7,3769.5,0.8948002]
[1717499309322,2.65273,3769.7,3769.5,0.0908002]
[1717499309529,2.65273,3769.7,3769.5,0.8948002]
[1717499311248,2.65273,3769.7,3769.5,0.0908002]
[1717499311402,2.65273,3769.7,3769.5,0.8948002]
[1717499317143,2.65273,3769.7,3769.6,2.3505]
[1717499323967,2.65273,3769.7,3769.5,0.8948002]
[1717499323968,2.65273,3769.7,3769.5,0.0908002]
[1717499324184,2.65273,3769.7,3769.5,0.8948002]
[1717499324394,2.65273,3769.7,3769.6,0.92182946]
[1717499324909,2.65273,3769.7,3769.5,0.8948002]
[1717499325206,2.65273,3769.7,3769.6,0.92182947]
[1717499325506,2.65273,3769.7,3769.6,2.85473635]
[1717499329007,2.65273,3769.7,3769.6,2.85473558]
[1717499330620,2.65273,3769.7,3769.6,2.85473544]
[1717499334815,2.65273,3769.7,3769.6,2.85473544]
[1717499338449,2.65273,3769.7,3769.6,3.65873544]
[1717499341856,2.65273,3769.7,3769.6,2.85473544]
[1717499342265,4.92423,3769.7,3769.6,2.85473544]
[1717499342494,5.42562379,3769.7,3769.5,0.0908002]
[1717499342753,2.2715,3769.6,3769.5,0.0908002]
[1717499342918,2.8215,3769.6,3769.5,0.0908002]
[1717499343521,3.6255,3769.6,3769.5,0.0908002]
[1717499343725,4.57770317,3769.6,3769.5,0.0908002]
[1717499343922,4.02770317,3769.6,3769.5,0.0908002]
[1717499344123,3.22370317,3769.6,3769.5,0.0908002]
[1717499344414,4.02770317,3769.6,3769.5,0.0908002]
[1717499347758,4.02770317,3769.6,3769.5,0.0908002]
[1717499349444,4.57770317,3769.6,3769.5,0.0908002]
[1717499350719,8.32770317,3769.6,3769.5,0.0908002]
[1717499352344,7.52370317,3769.6,3769.5,0.0908002]
[1717499352653,8.32770317,3769.6,3769.5,0.0908002]
[1717499352857,7.52370317,3769.6,3769.5,0.0908002]
[1717499353084,8.32770317,3769.6,3769.5,0.0908002]
[1717499353729,7.52370317,3769.6,3769.5,0.0908002]
[1717499353945,8.32770317,3769.6,3769.5,0.0908002]
[1717499358362,6.97370317,3769.6,3769.5,0.0908002]
[1717499358546,5.2715,3769.6,3769.5,0.0908002]
[1717499358946,6.0755,3769.6,3769.5,0.0908002]
[1717499359663,0.804,3769.6,3769.5,0.0908002]
[1717499359824,2.65273,3769.7,3769.5,0.0908002]
[1717499360024,0.804,3769.6,3769.5,0.0908002]
[1717499361168,2.65273,3769.7,3769.5,0.0908002]
[1717499361540,0.804,3769.6,3769.5,0.0908002]
[1717499362966,2.65273,3769.7,3769.5,0.0908002]
[1717499363167,0.804,3769.6,3769.5,0.0908002]
[1717499364570,2.65273,3769.7,3769.5,0.0908002]
[1717499364739,0.804,3769.6,3769.5,0.0908002]
[1717499365271,2.65273,3769.7,3769.5,0.0908002]
[1717499365571,3.45673,3769.7,3769.5,0.0908002]
[1717499369477,4.33868379,3769.7,3769.5,0.0908002]
[1717499371151,6.99142379,3769.7,3769.5,0.0908002]
[1717499374089,6.99142379,3769.7,3769.5,0.0908002]
[1717499374660,2.4322,3769.6,3769.5,0.0908002]
[1717499381026,6.99142379,3769.7,3769.5,0.0908002]
[1717499384794,6.18742379,3769.7,3769.5,0.0908002]
[1717499385013,0.804,3769.6,3769.5,0.0908002]
[1717499387446,2.06769203,3769.6,3769.5,0.0908002]
[1717499388521,1.26369203,3769.6,3769.5,0.0908002]
[1717499388736,2.06769203,3769.6,3769.5,0.0908002]
[1717499404058,1.26369203,3769.6,3769.5,0.0908002]
[1717499404367,0.804,3769.6,3769.5,0.0908002]
[1717499404939,0.804,3769.6,3769.5,0.16903841]
[1717499407768,3.45673,3769.7,3769.5,0.16903841]
[1717499409831,6.10948,3769.7,3769.5,0.16903841]
[1717499410094,2.3114,3769.6,3769.5,0.16903841]
[1717499410391,3.47944765,3769.6,3769.5,0.16903841]
[1717499411281,1.97204765,3769.6,3769.5,0.16903841]
[1717499411441,1.16804765,3769.6,3769.5,0.16903841]
[1717499411642,1.97204765,3769.6,3769.5,0.16903841]
[1717499415785,2.0221996,3769.6,3769.5,0.16903841]
[1717499416081,7.79004765,3769.6,3769.5,0.16903841]
[1717499416270,8.54004765,3769.6,3769.5,0.16903841]
[1717499420826,8.54004765,3769.6,3769.5,8.41e-06]
[1717499433222,9.86131342,3769.6,3769.5,8.41e-06]
[1717499437734,5.46804765,3769.6,3769.5,8.41e-06]
[1717499438255,6.27204765,3769.6,3769.5,8.41e-06]
[1717499441738,8.57744765,3769.6,3769.5,8.41e-06]
[1717499442532,9.89871342,3769.6,3769.5,8.41e-06]
[1717499442894,2.472,3769.1,3768.2,2.3493]
[1717499443094,3.45771,3768.3,3768.2,2.3493]
[1717499444241,2.65418,3767.7,3767.4,2.4179]
[1717499445645,2.65435,3767.4,3767.3,0.09254466]
[1717499446376,2.65435,3767.4,3767.3,2.40324466]
[1717499447968,2.65435,3767.4,3767.3,0.09254466]
[1717499448171,3.550185,3767.4,3767.3,0.09254466]
[1717499458797,4.354185,3767.4,3767.3,0.09254466]
[1717499468321,7.008535,3767.4,3767.3,0.09254466]
[1717499474186,10.008535,3767.4,3767.3,0.09254466]
[1717499474431,10.758535,3767.4,3767.3,0.09254466]
[1717499475794,10.758535,3767.4,3767.3,4.66e-06]
[1717499477835,13.412885,3767.4,3767.3,4.66e-06]
[1717499478200,14.73415077,3767.4,3767.3,4.66e-06]
[1717499478395,12.608885,3767.4,3767.3,4.66e-06]
[1717499478626,13.412885,3767.4,3767.3,4.66e-06]
[1717499479641,12.608885,3767.4,3767.3,4.66e-06]
[1717499479939,13.412885,3767.4,3767.3,4.66e-06]
[1717499483061,12.608885,3767.4,3767.3,4.66e-06]
[1717499483225,13.412885,3767.4,3767.3,4.66e-06]
[1717499486223,9.954535,3767.4,3767.3,4.66e-06]
[1717499486449,10.4127,3767.4,3767.3,4.66e-06]
[1717499487870,9.6087,3767.4,3767.3,4.66e-06]
[1717499488028,5.8587,3767.4,3767.3,2.27020466]
[1717499488225,6.6627,3767.4,3767.3,2.27020466]
[1717499489552,5.8587,3767.4,3767.3,2.27020466]
[1717499489859,6.6627,3767.4,3767.3,2.27020466]
[1717499491971,4.00835,3767.4,3767.3,2.27020466]
[1717499492334,3.45835,3767.4,3767.3,2.27020466]
[1717499495567,2.65435,3767.4,3767.3,2.27020466]
[1717499500208,2.65435,3767.4,3767.3,4.66e-06]
[1717499500209,3.530185,3767.4,3767.3,4.66e-06]
[1717499500408,14.733785,3767.4,3767.3,4.66e-06]
[1717499500624,16.80505077,3767.4,3767.3,4.66e-06]
[1717499503954,14.15070077,3767.4,3767.3,4.66e-06]
[1717499506616,16.80505077,3767.4,3767.3,4.66e-06]
[1717499507344,16.80505077,3767.4,3766.2,2.4445]
[1717499507544,3.45912,3766.3,3766.2,2.4445]
[1717499508128,2.65491,3766.6,3766.2,2.4445]
[1717499515960,2.65491,3766.6,3766.3,2.2865]
[1717499516494,2.65491,3766.6,3766.3,0.804]
[1717499516638,2.65491,3766.6,3766.4,2.3914]
[1717499516830,2.65491,3766.6,3766.5,0.31954]
[1717499517037,2.65491,3766.6,3766.2,2.3914]
[1717499517268,2.65491,3766.6,3766.3,0.804]
[1717499517467,2.65469,3767.0,3766.4,2.3032]
[1717499520143,2.65469,3767.0,3766.6,0.804]
[1717499520374,2.65469,3767.0,3766.8,2.3746]
[1717499524270,2.65442,3767.3,3766.8,2.3746]
[1717499526588,2.65442,3767.3,3766.8,3.1786]
[1717499526768,2.65442,3767.3,3766.9,2.4471]
[1717499529298,2.65442,3767.3,3767.0,0.804]
[1717499529515,2.65442,3767.3,3767.1,2.75411]
[1717499530610,7.95421,3767.6,3767.1,2.75411]
[1717499530813,5.3,3767.6,3767.1,2.75411]
[1717499534905,5.3,3767.6,3767.2,0.804]
[1717499535124,5.3,3767.6,3767.3,0.355811]
[1717499535288,5.3,3767.6,3767.4,2.4396]
[1717499536859,5.3,3767.6,3767.5,0.804]
[1717499537060,5.3,3767.6,3767.5,3.2725]
[1717499538152,5.3,3767.6,3767.5,2.4685]
[1717499538359,5.3,3767.6,3767.5,2.980798]
[1717499539405,5.3,3767.6,3767.5,3.784798]
[1717499547659,2.65379,3768.2,3767.6,2.4218]
[1717499547878,2.65379,3768.2,3768.1,0.804]
[1717499548754,6.1981,3769.0,3768.1,0.804]
[1717499548959,2.65355,3768.6,3768.1,0.804]
[1717499549182,2.65355,3768.6,3768.1,1.10963]
[1717499549750,2.65355,3768.6,3768.1,0.30563]
[1717499554006,2.65355,3768.6,3768.0,2.2523]
[1717499561745,2.65355,3768.6,3768.1,0.804]
[1717499562548,2.6537,3768.4,3768.0,2.2523]
[1717499566111,2.6537,3768.4,3767.7,8.124]
[1717499566315,2.6537,3768.4,3767.8,2.4017]
[1717499567252,2.6537,3768.4,3767.9,1.85657]
[1717499567853,2.6537,3768.4,3767.9,1.05257]
[1717499568029,2.6537,3768.4,3768.0,0.804]
[1717499569763,2.6537,3768.4,3767.9,1.05257]
[1717499569944,2.6537,3768.4,3768.0,0.804]
[1717499574596,2.6537,3768.4,3767.8,1.38333734]
[1717499574804,0.26537,3768.3,3767.8,2.30555213]
[1717499574999,3.4577,3768.4,3767.7,7.32]
[1717499575217,3.4577,3768.4,3767.8,0.92224939]
[1717499576019,2.6537,3768.4,3767.8,0.92224939]
[1717499576219,2.6537,3768.4,3767.8,2.30562549]
[1717499577618,2.65399,3768.0,3767.8,0.92224939]
[1717499577803,5.05509,3768.0,3767.5,0.55016267]
[1717499578008,5.05509,3768.0,3767.4,0.92237442]
[1717499578210,5.05509,3768.0,3767.2,8.124]
[1717499578416,5.05509,3768.0,3767.3,0.92241182]
[1717499578619,2.65399,3768.0,3767.3,2.30601117]
[1717499578924,2.65399,3768.0,3767.4,3.99621182]
[1717499579101,2.65399,3768.0,3767.4,3.0738]
[1717499579297,2.65413,3767.8,3767.5,0.92236262]
[1717499579528,2.3727,3767.7,3767.3,1.38359935]
[1717499579735,2.3727,3767.7,3767.3,2.30597168]
[1717499579914,2.3727,3767.7,3767.2,7.32]
[1717499580427,2.3727,3767.7,3767.2,8.124]
[1717499580625,2.65413,3767.8,3767.2,8.124]
[1717499581342,2.65431,3767.5,3767.2,7.32]
[1717499582538,2.65431,3767.5,3767.1,0.804]
[1717499583723,2.65431,3767.5,3766.9,1.38369124]
[1717499583931,2.65431,3767.5,3767.1,0.804]
[1717499597855,2.65431,3767.5,3767.2,0.07629227]
[1717499598259,2.65431,3767.5,3767.2,0.88029227]
[1717499605390,4.97461,3767.5,3767.2,0.07629227]
[1717499605772,4.90822,3767.3,3767.2,0.07629227]
[1717499605961,5.744873,3767.3,3767.2,0.07629227]
[1717499606559,6.294873,3767.3,3767.2,0.07629227]
[1717499608870,4.90822,3767.3,3767.2,0.07629227]
[1717499609798,2.65442,3767.3,3767.2,0.07629227]
[1717499615119,5.06622,3767.3,3767.2,0.07629227]
[1717499615300,5.61622,3767.3,3767.2,0.07629227]
[1717499617602,6.42022,3767.3,3767.2,0.07629227]
[1717499617797,7.327683,3767.3,3767.2,0.07629227]
[1717499621421,4.915883,3767.3,3767.2,0.07629227]
[1717499621588,4.00842,3767.3,3767.2,0.07629227]
[1717499623827,2.65442,3767.3,3767.2,0.07629227]
[1717499626911,3.20442,3767.3,3767.2,0.07629227]
[1717499636215,4.00842,3767.3,3767.2,0.07629227]
[1717499645392,8.98694,3767.3,3767.2,0.07629227]
[1717499645552,9.885634,3767.3,3767.2,0.07629227]
[1717499646578,15.540054,3767.3,3767.2,0.07629227]
[1717499646770,16.290054,3767.3,3767.2,0.07629227]
[1717499649695,15.486054,3767.3,3767.2,0.07629227]
[1717499649857,16.290054,3767.3,3767.2,0.07629227]
[1717499650799,17.61131977,3767.3,3767.2,2.27e-06]
[1717499656782,20.26573977,3767.3,3767.2,2.27e-06]
[1717499656959,17.61131977,3767.3,3767.2,2.27e-06]
[1717499657362,20.26573977,3767.3,3767.2,2.27e-06]
[1717499666369,2.65554,3765.7,3765.6,2.3053]
[1717499666573,3.20554,3765.7,3765.6,2.3053]
[1717499670021,2.65554,3765.7,3765.6,2.3053]
[1717499670396,2.65529,3766.1,3765.6,2.3053]
[1717499670605,2.65554,3765.7,3765.6,2.3053]
[1717499670813,2.65554,3765.7,3765.6,2.53583]
[1717499676644,2.65534,3766.0,3765.6,2.53583]
[1717499676949,2.65534,3766.0,3765.7,0.804]
[1717499677147,2.65534,3766.0,3765.8,2.2613]
[1717499677451,2.65534,3766.0,3765.9,2.56783]
[1717499679802,5.3,3766.2,3765.9,2.56783]
[1717499687009,2.65526,3766.1,3765.9,2.56783]
[1717499687975,2.65526,3766.1,3766.0,0.06754493]
[1717499688980,2.65526,3766.1,3765.9,0.256783]
[1717499689150,2.65526,3766.1,3765.4,1.18608454]
[1717499689344,2.65526,3766.1,3765.5,0.92282963]
[1717499689950,2.65526,3766.1,3765.4,1.18608454]
[1717499690148,2.65526,3766.1,3765.5,0.92284205]
[1717499692170,2.65549,3765.8,3765.5,0.92284205]
[1717499692341,2.65549,3765.8,3765.4,0.38208454]
[1717499692543,2.65549,3765.8,3765.4,0.92293142]
[1717499692743,2.65549,3765.8,3765.4,1.88264083]
[1717499693170,2.65549,3765.8,3765.4,0.95970941]
[1717499694084,2.65549,3765.8,3765.2,1.35416267]
[1717499694383,2.65549,3765.8,3765.3,0.92292256]
[1717499695958,2.65549,3765.8,3765.4,0.92292256]
[1717499696160,2.65549,3765.8,3765.1,3.55016267]
[1717499696372,2.65549,3765.8,3765.2,1.72693261]
[1717499696685,2.65549,3765.8,3765.3,0.92293261]
[1717499697342,2.65568,3765.6,3765.3,0.92293261]
[1717499697549,2.65582,3765.4,3765.1,0.55016267]
[1717499697781,2.65582,3765.4,3765.2,0.92295691]
[1717499698153,2.65582,3765.4,3765.3,0.92295691]
[1717499698556,2.65582,3765.4,3765.2,0.92295691]
[1717499698760,2.65582,3765.4,3765.3,0.92295691]
[1717499698962,2.65582,3765.4,3765.2,0.92295691]
[1717499699174,2.65582,3765.4,3765.3,0.92295691]
[1717499699563,2.65582,3765.4,3765.2,0.92295691]
[1717499699769,2.65582,3765.4,3765.3,0.92295691]
[1717499700067,2.65582,3765.4,3765.2,0.92295691]
[1717499700262,2.65582,3765.4,3765.3,0.92295691]
[1717499700454,2.65582,3765.4,3765.2,0.92295691]
[1717499700650,2.65582,3765.4,3765.0,1.9345958]
[1717499700904,2.65582,3765.4,3765.1,0.92296139]
[1717499701051,5.3,3766.2,3765.1,0.92296139]
[1717499701052,2.6559,3765.2,3765.1,0.92296139]
[1717499701452,2.6559,3765.2,3764.8,8.124]
[1717499701665,2.6559,3765.2,3764.3,1.09965757]
[1717499701666,2.6559,3765.2,3764.9,0.92308311]
[1717499701872,2.6559,3765.2,3764.9,0.804]
[1717499702277,2.6559,3765.2,3764.6,1.93478732]
[1717499702505,2.6559,3765.2,3765.0,0.804]
[1717499702715,7.32,3766.8,3765.0,1.17018613]
[1717499703009,2.65498,3766.5,3766.4,0.804]
[1717499703481,2.65498,3766.5,3765.8,0.55016267]
[1717499703659,2.65498,3766.5,3766.4,0.804]
[1717499704791,2.65498,3766.5,3765.8,1.38416321]
[1717499704964,2.65498,3766.5,3766.4,0.804]
[1717499715735,2.65498,3766.5,3765.9,2.3446]
[1717499716032,2.6552,3766.2,3766.0,0.92274208]
[1717499716444,2.6554,3765.9,3765.7,7.32]
[1717499716613,2.6554,3765.9,3765.8,0.804]
[1717499718415,2.6554,3765.9,3765.7,7.32]
[1717499718618,2.6554,3765.9,3765.8,0.804]
[1717499719906,2.6554,3765.9,3765.7,7.32]
[1717499720132,2.6554,3765.9,3765.8,0.804]
[1717499723730,2.6554,3765.9,3765.2,2.80576267]
[1717499724045,2.6554,3765.9,3765.3,0.92291478]
[1717499724209,2.6554,3765.9,3765.8,0.804]
[1717499725150,2.65563,3765.6,3765.2,2.80576267]
[1717499725360,2.2649,3766.4,3765.3,0.92293249]
[1717499725565,2.65576,3765.4,3764.9,4.43316263]
[1717499725804,2.65576,3765.4,3765.3,0.804]
[1717499726156,2.65597,3765.1,3764.7,1.93456263]
[1717499726356,2.65597,3765.1,3764.8,0.92305165]
[1717499726595,2.65597,3765.1,3764.6,2.4986]
[1717499726596,2.65597,3765.1,3764.6,4.43316263]
[1717499726899,2.65597,3765.1,3765.0,0.804]
[1717499727475,2.921567,3765.1,3765.0,0.804]
[1717499728291,2.65597,3765.1,3765.0,0.804]
[1717499730793,2.65597,3765.1,3764.4,0.55016267]
[1717499731102,5.02667,3765.1,3765.0,0.804]
[1717499733302,2.65597,3765.1,3765.0,0.804]
[1717499734902,2.6562,3764.8,3764.1,1.93488578]
[1717499735108,2.6562,3764.8,3764.7,0.804]
[1717499740495,2.6565,3764.4,3764.1,0.26684563]
[1717499740675,2.3016,3764.8,3764.3,0.804]
[1717499740873,4.95778,3764.8,3764.7,0.804]
[1717499741605,4.95778,3764.8,3764.0,7.32]
[1717499741606,2.65652,3764.4,3764.0,7.32]
[1717499741813,2.65652,3764.4,3764.3,0.804]
[1717499742310,4.95022,3765.2,3764.3,0.804]
[1717499742507,2.6564,3764.5,3764.3,3.0728]
[1717499742706,2.3604,3764.5,3764.3,4.11208]
[1717499743442,2.2943,3765.2,3764.3,4.11208]
[1717499743596,2.2943,3765.2,3765.1,0.804]
[1717499744133,2.65628,3764.7,3764.3,3.0728]
[1717499744319,2.65628,3764.7,3764.6,0.804]
[1717499745527,2.65628,3764.7,3764.3,2.2688]
[1717499745729,2.65628,3764.7,3764.6,0.804]
[1717499754565,0.587,3764.8,3764.7,2.4694]
[1717499755420,0.06054449,3764.8,3764.7,2.4694]
[1717499755768,0.06054449,3764.8,3764.7,3.39239702]
[1717499756579,0.06054449,3764.8,3764.7,3.23259702]
[1717499756880,3.16988863,3765.5,3765.0,2.4706]
[1717499757179,3.16988863,3765.5,3765.4,0.804]
[1717499758449,5.31,3765.7,3765.4,3.1498]
[1717499758756,5.31,3765.7,3765.6,0.804]
[1717499758961,2.65525,3766.2,3765.6,0.804]
[1717499759165,2.65525,3766.2,3765.4,3.1498]
[1717499759459,2.65525,3766.2,3766.1,0.804]
[1717499762366,5.4429,3766.6,3765.4,2.3458]
[1717499762367,2.65543,3765.9,3765.4,2.3458]
[1717499762571,2.65543,3765.9,3765.8,0.804]
[1717499764680,2.65543,3765.9,3765.8,0.80080286]
[1717499764895,2.65543,3765.9,3765.8,0.804]
[1717499765580,2.65518,3766.3,3765.8,0.804]
[1717499765780,2.65518,3766.3,3766.2,0.804]
[1717499769987,2.65491,3766.6,3766.2,0.804]
[1717499770289,2.65491,3766.6,3766.5,0.804]
[1717499772764,5.3,3766.7,3766.5,0.804]
[1717499773656,5.3,3766.7,3766.5,3.1596]
[1717499774172,5.3,3766.7,3766.5,3.47556]
[1717499774379,5.3,3766.7,3766.6,2.65491]
[1717499777983,5.3,3766.7,3766.6,2.71766609]
[1717499778172,5.06829,3767.7,3766.6,2.71766609]
[1717499778388,5.06829,3767.7,3767.6,0.804]
[1717499778991,2.65419,3767.7,3767.6,0.804]
[1717499780695,5.3,3768.0,3767.6,0.804]
[1717499781000,5.3,3768.0,3767.9,0.804]
[1717499787447,2.65419,3767.7,3767.2,7.32]
[1717499787612,2.65419,3767.7,3767.6,0.804]
[1717499793542,2.65419,3767.7,3767.1,2.3105]
[1717499793709,2.65419,3767.7,3767.6,0.804]
[1717499794648,5.3,3768.0,3767.6,0.804]
[1717499794860,5.3,3768.0,3767.9,0.804]
[1717499795023,6.322062,3768.0,3767.9,0.804]
[1717499797012,2.65409,3767.8,3767.2,7.32]
[1717499797214,2.65409,3767.8,3767.7,0.804]
[1717499806168,2.65409,3767.8,3766.9,2.4496]
[1717499806363,3.7975752,3767.8,3767.7,0.804]
[1717499806722,2.65409,3767.8,3767.7,0.804]
[1717499806926,5.3,3768.0,3767.7,0.804]
[1717499807150,5.3,3768.0,3767.9,0.804]
[1717499811665,5.3,3768.0,3767.2,7.32]
[1717499811885,2.3371,3767.9,3767.2,7.32]
[1717499812040,0.76371,3767.8,3767.2,7.32]
[1717499812241,3.41777,3767.8,3767.7,0.804]
[1717499813609,5.3,3768.0,3767.7,0.804]
[1717499813756,5.3,3768.0,3767.3,2.6544]
[1717499813757,5.3,3768.0,3767.9,0.804]
[1717499813941,2.65373,3768.3,3767.9,0.804]
[1717499814146,2.65373,3768.3,3768.2,0.804]
[1717499814382,2.3976,3767.9,3767.2,7.32]
[1717499814591,2.65398,3768.0,3767.8,0.804]
[1717499815237,2.65398,3768.0,3767.5,2.2944]
[1717499815565,2.65398,3768.0,3767.9,0.804]
[1717499815949,2.919378,3768.0,3767.2,9.6549]
[1717499816155,2.919378,3768.0,3767.9,0.804]
[1717499816156,5.06258,3768.0,3767.9,0.804]
[1717499820596,5.06258,3768.0,3767.1,1.38383209]
[1717499820804,2.65425,3767.6,3767.1,1.38383209]
[1717499820999,2.65444,3767.3,3766.8,3.72281262]
[1717499821300,2.65444,3767.3,3766.8,2.339]
[1717499821501,2.65444,3767.3,3767.2,0.804]
[1717499821863,3.151634,3767.3,3766.6,0.06275609]
[1717499822058,2.3175,3767.6,3766.6,0.06275609]
[1717499822059,2.65476,3766.9,3766.6,0.06275609]
[1717499822308,5.3,3767.3,3766.8,0.804]
[1717499822491,3.40449,3767.2,3767.1,0.804]
[1717499823609,2.65449,3767.2,3767.1,0.804]